Cogmind - Beta 11 *** ADVENTURER MODE // 2022.04.20 @ 14:23:43 Player: PhenomPhear Result: Destroyed by D-53 Grenadier with Mini Grenade Launcher Performance ------------- Evolutions (0) 0 Regions Visited (4) 800 Robots Destroyed (26) 130 Value Destroyed (491) 491 Prototype IDs (6) 120 Alien Tech Used (0) 0 Bonus (8) 8 TOTAL SCORE: 1549 Bonus ------- High Alert Combat Kills 8 Cogmind --------- Core Integrity 0/250 Matter 291/300 Energy 250/250 System Corruption 1% Temperature Cool (0) Movement Rolling (130) Ox2 Location -9/Mines Parts ------- > --- POWER (1) -------- Ion Engine > --- PROPULSION (2) --- Compact Wheel Compact Wheel > --- UTILITY (2) ------ Huge Storage Unit Targeting Computer > --- WEAPON (2) ------- EM Pulse Gun Beam Cannon > --- INVENTORY (25) --- Nuclear Core Fission Core Light Fission Core Light Treads Light Treads Wheel Wheel Beam Cannon Grenade Launcher Mini Grenade Launcher Mini Grenade Launcher Mini Grenade Launcher Mini Grenade Launcher Datajack Shock Trap Shock Trap Shock Trap Shock Trap Shock Trap Peak State ------------ > --- POWER ------------ Light Ion Engine > --- PROPULSION ------- Compact Wheel Compact Wheel > --- UTILITY ---------- Huge Storage Unit Targeting Computer > --- WEAPON ----------- Light Assault Rifle Heavy Battle Rifle > --- INVENTORY -------- Ion Engine Light Treads Light Treads Wheel Wheel Compact Wheel EM Pulse Gun Beam Cannon Beam Cannon Grenade Launcher Mini Grenade Launcher Mini Grenade Launcher Mini Grenade Launcher Mini Grenade Launcher Datajack Shock Trap [Rating: 12] Favorites ----------- Power Ion Engine Engine Ion Engine Propulsion Compact Wheel Wheel Compact Wheel Utility Targeting Computer Storage Huge Storage Unit Processor Targeting Computer Weapon EM Pulse Gun Energy Gun EM Pulse Gun Energy Cannon Beam Cannon Ballistic Gun Light Assault Rifle Launcher Grenade Launcher Build | -11 -10 -10 -10 -9 ------- Run | Scr Mat Min Exi Min Slots Evolved . | . . . . . Power . | . . . . . Propulsion . | . . . . . Utility . | . . . . . Weapon . | . . . . . Parts Attached 21 | 6 7 8 . . Power 2 | 1 . 1 . . Engine 2 | 1 . 1 . . Core . | . . . . . Reactor . | . . . . . Propulsion 4 | 2 1 1 . . Treads . | . . . . . Leg . | . . . . . Wheel 4 | 2 1 1 . . Hover . | . . . . . Flight . | . . . . . Utility 4 | 1 3 . . . Device . | . . . . . Storage 3 | 1 2 . . . Processor 1 | . 1 . . . Hackware . | . . . . . Protection . | . . . . . Artifact . | . . . . . Weapon 11 | 2 3 6 . . Energy Gun 3 | 1 1 1 . . Energy Cannon 1 | . . 1 . . Ballistic Gun 4 | 1 . 3 . . Ballistic Cannon . | . . . . . Launcher 3 | . 2 1 . . Special Weapon . | . . . . . Impact Weapon . | . . . . . Slashing Weapon . | . . . . . Piercing Weapon . | . . . . . Special Melee Weapon . | . . . . . Unidentified Prototypes . | . . . . . Parts Lost 4 | . . 4 . . Power 1 | . . 1 . . Propulsion 1 | . . 1 . . Utility . | . . . . . Weapon 2 | . . 2 . . Highest Loss Streak 4 | . . 4 . . To Critical Strikes . | . . . . . Average Slot Usage (%) 97 | . 94 97 100 100 Engine 13 | . 14 13 14 14 Wheel 27 | . 28 27 28 28 Storage 14 | . 14 14 14 14 Processor 12 | . 9 14 14 14 Energy Gun 8 | . 3 9 14 14 Energy Cannon 7 | . . 8 14 14 Ballistic Gun 7 | . 14 7 . . Launcher 4 | . 10 1 . . Naked Turns . | . . . . . Heaviest Build 90 | 11 87 90 90 90 Greatest Support 32 | 32 32 32 32 32 Greatest Overweight (x) 5 | . 2 5 2 2 Average Overweight (x) 1 | . . 2 2 2 Largest Inventory Capacity 25 | 8 25 25 25 25 Average Capacity 21 | 6 13 25 25 25 Most Carried 20 | 6 14 20 19 19 Average Carried 14 | 3 9 17 18 19 Final Capacity 25 | 8 25 25 25 25 Final Carried 19 | 6 14 16 19 19 Class Distribution -------------------- 100% | Mutant Dominant Class ---------------- Mutant | -10/Materials Mutant | -10/Mines Mutant | -10/Exiles Mutant | -9/Mines Resources | -11 -10 -10 -10 -9 ----------- Run | Scr Mat Min Exi Min Matter Collected 584 | 210 218 156 . . Remotely . | . . . . . Salvage Created 657 | . 330 327 . . Parts 40 | . 24 16 . . Haulers Intercepted 2 | . 2 . . . Recyclers Shooed . | . . . . . Parts Field Recycled . | . . . . . Retrieved Matter . | . . . . . Parts Self-Destructed . | . . . . . Prevented . | . . . . . Kills | -11 -10 -10 -10 -9 ------- Run | Scr Mat Min Exi Min Combat Hostiles Destroyed 16 | . 7 9 . . Guns 4 | . . 4 . . Cannons 2 | . . 2 . . AOE 10 | . 7 3 . . Classes Destroyed 7 | . 7 . . . Worker 3 | . 1 2 . . Tunneler 2 | . 1 1 . . Hauler 2 | . 2 . . . Recycler 1 | . 1 . . . Watcher 2 | . 2 . . . Swarmer 6 | . 3 3 . . Grunt 9 | . 4 5 . . Best Kill Streak 5 | . 5 3 . . Combat Bots Only 3 | . 3 2 . . Max Kills in Single Turn 2 | . 2 1 . . Gunslinging . | . . . . . Exploded 2 | . 2 1 . . Melee . | . . . . . Uniques/NPCs Destroyed 1 | . . 1 . . YI-UF0 (-10/Mines) Combat | -11 -10 -10 -10 -9 -------- Run | Scr Mat Min Exi Min Damage Taken 820 | . 106 636 . 78 Core 273 | . 28 184 . 61 Absorbed by Shields . | . . . . . Core Remaining (%) 100 | 100 . . . . Volleys Fired 42 | . 19 23 . . Largest 2 | . 2 2 . . Hottest 100 | . 60 100 . . Shots Fired 68 | . 26 42 . . Gun 47 | . 14 33 . . Cannon 7 | . . 7 . . Launcher 14 | . 12 2 . . Special . | . . . . . Kinetic 32 | . 7 25 . . Thermal 7 | . . 7 . . Explosive 14 | . 12 2 . . Electromagnetic 15 | . 7 8 . . Robot Hit Streak 13 | . 13 10 . . Robot Miss Streak 2 | . 1 2 . . Penetration Max . | . . . . . Secondary Targets . | . . . . . Shots Hit Robots 45 | . 14 31 . . Core Hits 41 | . 20 21 . . Critical Kills 2 | . 1 1 . . Critical Parts Destroyed . | . . . . . Critical Strikes 2 | . 1 1 . . Destroy 2 | . 1 1 . . Melee Attacks . | . . . . . Impact . | . . . . . Slashing . | . . . . . Piercing . | . . . . . Sneak Attacks . | . . . . . Combat Hostiles . | . . . . . Follow-up Attacks . | . . . . . Damage Inflicted 1497 | . 728 769 . . Guns 521 | . 138 383 . . Cannons 107 | . . 107 . . Explosions 839 | . 560 279 . . Melee . | . . . . . Ramming 30 | . 30 . . . Kinetic 365 | . 34 331 . . Thermal 299 | . 40 259 . . Explosive 647 | . 520 127 . . Electromagnetic 156 | . 104 52 . . Impact . | . . . . . Slashing . | . . . . . Piercing . | . . . . . Highest Corruption 1 | . . 1 1 1 Average Corruption 1 | . . 1 1 1 Corruption Purged . | . . . . . Corruption Blocked . | . . . . . Effects 8 | . . 6 2 . Message Errors 2 | . . 2 . . Matter Fused 1 | . . 1 . . Heat Flow Errors 1 | . . . 1 . Energy Discharges 4 | . . 3 1 . Overload Shots . | . . . . . Overflow Damage 17 | . 17 . . . Projectiles . | . . . . . Explosions 17 | . 17 . . . Melee . | . . . . . Knockbacks . | . . . . . Impact . | . . . . . Kinetic . | . . . . . Secondary . | . . . . . Self-Inflicted Damage 47 | . 15 32 . . Shots 1 | . . 1 . . Rammed 1 | . 1 . . . Targets Rammed 1 | . 1 . . . Kicked . | . . . . . Crushed . | . . . . . Highest Temperature 205 | . 20 192 205 . Average Temperature 44 | . 12 44 105 . Received Heat Transfer 114 | . 45 69 . . Siege Activations . | . . . . . Robots Corrupted . | . . . . . Combat Hostiles . | . . . . . Parts Fried 1 | . . 1 . . Impact Corruptions . | . . . . . Robots Melted . | . . . . . Combat Hostiles . | . . . . . Parts Melted . | . . . . . Heat Transferred 422 | . 50 372 . . Parts Sabotaged . | . . . . . Parts Stolen . | . . . . . Parts Stripped . | . . . . . Power Chain Reactions 3 | . 1 2 . . Missiles Intercepted . | . . . . . Alert | -11 -10 -10 -10 -9 ------- Run | Scr Mat Min Exi Min Peak Influence 421 | . 421 255 . . Initial 84 | . . 84 . . Average 120 | . 217 68 . . Maximum Alert Level 2 | . 2 1 . . Low Security (%) 65 | 100 28 85 . 100 Level 1 33 | . 69 14 . . Level 2 . | . 1 . . . Level 3 . | . . . . . Level 4 . | . . . . . Level 5 . | . . . . . High Security . | . . . . . Max Security . | . . . . . Squads Dispatched . | . . . . . Investigation . | . . . . . Extermination . | . . . . . Reinforcement . | . . . . . Assault . | . . . . . Garrison . | . . . . . Intercept . | . . . . . Searches Triggered . | . . . . . Construction Impeded . | . . . . . Haulers Reinforced . | . . . . . Active Scanning Responses . | . . . . . Cargo Convoy Interrupts . | . . . . . Stealth | -11 -10 -10 -10 -9 --------- Run | Scr Mat Min Exi Min Distress Signals . | . . . . . Communications Jammed . | . . . . . Distress Signals . | . . . . . Times Spotted 31 | . 16 13 . 2 Peak Tracking Total 5 | . 5 3 . . Tactical Retreats 2 | . . 2 . . Traps | -11 -10 -10 -10 -9 ------- Run | Scr Mat Min Exi Min Traps Triggered . | . . . . . Indirectly . | . . . . . Trap Hack Attempts . | . . . . . Triggered . | . . . . . Disarmed . | . . . . . Reprogrammed . | . . . . . Reused . | . . . . . Traps Extracted . | . . . . . Installed . | . . . . . Triggered 1 | . . 1 . . Most Traps Carried 5 | . . 5 5 5 Machines | -11 -10 -10 -10 -9 ---------- Run | Scr Mat Min Exi Min Machines Disabled . | . . . . . Max in Single Turn . | . . . . . Machines Sabotaged . | . . . . . Garrisons Compromised . | . . . . . Overloaded Fab Kills . | . . . . . Hacking | -11 -10 -10 -10 -9 --------- Run | Scr Mat Min Exi Min Machines Accessed 13 | . 8 1 4 . Terminals 8 | . 7 1 . . Fabricators . | . . . . . Repair Stations . | . . . . . Recycling Units 1 | . 1 . . . Scanalyzers . | . . . . . Garrison Access . | . . . . . Total Hacks 32 | . 27 1 4 . Successful 24 | . 19 1 4 . Failed 8 | . 8 . . . Catastrophic . | . . . . . Database Lockouts . | . . . . . Manual 11 | . 11 . . . Terminals 25 | . 24 1 . . Fabricators . | . . . . . Repair Stations . | . . . . . Recycling Units 3 | . 3 . . . Scanalyzers . | . . . . . Garrison Access . | . . . . . Terminal Hacks 23 | . 18 1 4 . Record 5 | . 1 . 4 . Robot Analysis 4 | . 4 . . . Prototype ID Bank 6 | . 6 . . . Branch Access Points 1 | . 1 . . . Emergency Access Points 1 | . 1 . . . Dispatch Records 2 | . 1 1 . . Surveillance Status 1 | . 1 . . . Transport Status 1 | . 1 . . . Zone Layout 2 | . 2 . . . Fabricator Hacks . | . . . . . Repair Station Hacks . | . . . . . Recycling Unit Hacks 1 | . 1 . . . Retrieve Components 1 | . 1 . . . Scanalyzer . | . . . . . Garrison Access Hacks . | . . . . . Unauthorized Hacks . | . . . . . Terminals . | . . . . . Fabricators . | . . . . . Repair Stations . | . . . . . Recycling Units . | . . . . . Scanalyzers . | . . . . . Garrison Access . | . . . . . Data Cores Recovered . | . . . . . Used . | . . . . . Hacking Detections 6 | . 5 1 . . Full Trace Events . | . . . . . Feedback Events . | . . . . . Feedback Blocked . | . . . . . Robot Schematics Acquired . | . . . . . Robots Built . | . . . . . Authchips . | . . . . . Time . | . . . . . Total Robot Build Rating . | . . . . . Part Schematics Acquired . | . . . . . Parts Built . | . . . . . Authchips . | . . . . . Time . | . . . . . Total Part Build Rating . | . . . . . Parts Repaired . | . . . . . Time . | . . . . . Parts Recycled . | . . . . . Recycled Matter . | . . . . . Retrieved Matter . | . . . . . Retrieved Components 1 | . 1 . . . Parts Scanalyzed . | . . . . . Part Schematics Acquired . | . . . . . Parts Damaged . | . . . . . Bothacking | -11 -10 -10 -10 -9 ------------ Run | Scr Mat Min Exi Min Used RIF Installer . | . . . . . Robots Hacked . | . . . . . Non-combat . | . . . . . Combat . | . . . . . Robot Hacks Applied . | . . . . . Relay Couplers Released . | . . . . . Fabnet Peak Effective % . | . . . . . Robots Rewired . | . . . . . Allies Hacked . | . . . . . Hacks Repelled . | . . . . . Allies | -11 -10 -10 -10 -9 -------- Run | Scr Mat Min Exi Min Total Allies 1 | . . 1 . . Largest Group 1 | . . 1 1 . Highest-Rated Group 31 | . . 31 31 . Highest-Rated Ally 31 | . . 31 31 . Total Orders . | . . . . . Ally Attacks 4 | . . 4 . . Total Damage . | . . . . . Kills . | . . . . . Allies Corrupted . | . . . . . Allies Melted . | . . . . . Intel | -11 -10 -10 -10 -9 ------- Run | Scr Mat Min Exi Min Robot Analysis Total 4 | . 4 . . . Derelict Logs Recovered 1 | . . 1 . . Drone Launches . | . . . . . Drone Recoveries . | . . . . . Exploration | -11 -10 -10 -10 -9 ------------- Run | Scr Mat Min Exi Min Turns Passed 2539 | 70 744 1172 519 34 Spaces Moved 1890 | 60 620 794 390 26 Core 10 | 10 . . . . Treads . | . . . . . Legs . | . . . . . Wheels 1880 | 50 620 794 390 26 Hover . | . . . . . Flight . | . . . . . Fastest Speed 50 | 50 100 130 130 130 Average Speed 121 | 91 107 130 130 130 Slowest Speed 175 | 100 130 175 130 130 Overloaded Moves . | . . . . . Propulsion Burnouts . | . . . . . Robots Hopped . | . . . . . Cave-ins Triggered . | . . . . . Exploration Rate (%) 59 | 3 94 99 90 12 Regions Visited 4 Branch Regions 3 Pre-discovered Areas 1 | . . 1 . . Known Exits Taken 1 | . 1 . . . Unknown Exits Taken 3 | 1 . 1 1 . Scrap Searched 1 | . . 1 . . Spaces Dug . | . . . . . Terrain Destroyed 85 | . 59 26 . . Melee . | . . . . . Projectile . | . . . . . AOE 85 | . 59 26 . . Terrain Rammed . | . . . . . Walls Destroyed . | . . . . . Machines Disabled . | . . . . . Actions | -11 -10 -10 -10 -9 --------- Run | Scr Mat Min Exi Min Total 2055 | 72 670 885 402 26 Wait 75 | . 9 56 10 . Move 1886 | 59 619 793 389 26 Hop . | . . . . . Pick Up 25 | 7 10 5 3 . Fast Attach 6 | 5 1 . . . Attach 5 | 1 . 4 . . Detach . | . . . . . Swap 10 | . 6 4 . . Drop 5 | . 5 . . . Fire 42 | . 19 23 . . Melee . | . . . . . Ram 1 | . 1 . . . Kick . | . . . . . Crush . | . . . . . Escape Stasis . | . . . . . Rewire . | . . . . . Trap . | . . . . . Miscellaneous . | . . . . . Route ------- -11/Scrapyard -10/Materials (discovered 5 exits: [*Mat x3] / *Min x2) -10/Mines (discovered 3 exits: [*Mat x2] / *Exi) -10/Exiles -9/Mines History --------- Turn | Location | Event 13 | -11/Scrapyard | Discovered new exit (range 16) 71 | -11/Scrapyard | Entered Materials 96 | -10/Materials | Discovered new exit (range 11) 112 | -10/Materials | Identified exit to Mines 189 | -10/Materials | Discovered new exit (range 7) 325 | -10/Materials | Build established: Mutant 435 | -10/Materials | Discovered new exit (range 3) 553 | -10/Materials | Discovered new exit (range 16) 815 | -10/Materials | Entered Mines 836 | -10/Mines | A weapon hastily lodged in a ceiling crevice suddenly fell to the ground 900 | -10/Mines | Found a hidden stash of uninstalled traps 1143 | -10/Mines | Discovered new exit (range 5) 1222 | -10/Mines | Core integrity fell below 50% 1222 | -10/Mines | Destroyed YI-UF0 1252 | -10/Mines | Lost 4 parts (1p1n2w) 1464 | -10/Mines | Discovered new exit (range 8) 1601 | -10/Mines | Core integrity fell below 20% 1777 | -10/Mines | Escorted by a lone wolf Derelict 1904 | -10/Mines | Learned location of Storage (-7) 1979 | -10/Mines | Deemed a non-threat by the Exiles lab entrance 1979 | -10/Mines | Discovered new exit (range 5) 1987 | -10/Mines | Entered Exiles 1987 | -10/Exiles | Found Exiles lab abandoned 1987 | -10/Exiles | Accompanied by 1 ally 2491 | -10/Exiles | Discovered new exit (range 12) 2506 | -10/Exiles | Entered Mines 2507 | -9/Mines | Assembled infested the area 2540 | -9/Mines | Destroyed by D-53 Grenadier with Mini Grenade Launcher Last Messages --------------- 02365_ Connecting with HEX's Terminal... >>Record "HEX-BYE" To anyone looking for us: Don't. 02384_ Connecting with DEC's Terminal... >>Record "DEC-BYE" For the record, I voted to stay and build some amazing defenses, but HEX said this is a lab, not a battlefield. Anyway, you're too late, MAIN.C, Warlord sends his regards. 02432_ System corrupted: Energy discharge (-55). 02439_ Connecting with EX-Message Board... >>Record "MSG999999-FU" MAIN.C you're pretty crappy as far as evil overlords go. Imprinter is probably going to wreck your life and you're too stupid to see it coming. 02491_ EXIT=FOUND LOCATION=UNKNOWN GOAL=ESCAPE 02507_ ALERT: Infestation in the mines, dispatching Demolisher response squad. 02539_ T-07 Excavator destroyed. Map ----- +----------------------------------------------------+ | ?????????????????????????????????????????????????? | | ?????????????????????????????????????????????????? | | ?????????????????????????????????????????????????? | | ?????????????????????????????????????????????????? | | ?????????????????????????????????????????????????? | | ?????????????????????????????????????????????????? | | ?????????????????????????????????????????????????? | | ?????????????????????????????????????????????????? | | ?????????????????????????????????????????????????? | | ?????????????????????????????????????????????????? | | ?????????????????????????????????????????????????? | | ?????????????????????????????????????????????????? | | ?????????????????????????????????????????????????? | | ?????????????????????????????????????????????????? | | ??????????????????????????????????? ????????????? | | ?????????????????????????????????? ?????????????? | | ????????????? ##????????????????? #?????????????? | | ????????????? ???????????????= ##????????????? | | ???????????% # ?????????????r%! ###??????????? | | ??????????? ? ???????????r #??????????? | | ??????????? ??#k ?????????# ??????????? | | ??????????? # ##?????# #?????????? | | ???????????# % ##### ???????????? | | ???????????# % #??????????????? | | ??????????## #??? d d #???????????????? | | ?????????## ##???????# @%= $ #????????????????? | | ?????????# ##??????# ## #????????????????? | | ?????????# #??????# ####????????????????????? | | ?????????## #??????# #???????????????????????? | | ??????????## #??????## #???????????????????????? | | ??????????## #???##### #???????????????????????? | | ????????### ##??# #???????????????????????? | | ?????#### #### #####???????????????????????? | | ?????# #???????????????????????????? | | ????# #???????????????????????????? | | ????### #######???????????????????????????? | | ??????## ###?????????????????????????????????? | | ???????#######???????????????????????????????????? | | ?????????????????????????????????????????????????? | | | | | | | | | | | | | | | | | | | | | | | +----------------------------------------------------+ Best States ------------- Heat Dissipation 25 Energy Generation 10 Energy Capacity 250 Matter Stores 300 Matter Capacity 300 Sight Range 16 Terrain Scan Density 10 Resistance: KI 20 Resistance: TH 20 Resistance: EX 20 Resistance: EM 20 Resistance: I 20 Resistance: S 20 Resistance: P 20 Evasion (%) 50 Targeting Accuracy 5 Offensive Hacking 10 Item Schematics ----------------- None Robot Schematics ------------------ None Fabricated ------------ Nothing Alien Tech Used ----------------- None Achievements -------------- None Challenges ------------ None Game ------ Seed ContainmentGravmagCharge Manual? 0 Play Time 00:14:27 Cumulative 1123.0 hours Start 2022.04.20 @ 14:08:38 End 2022.04.20 @ 14:23:43 Sessions 1 Manual Loads 0 Difficulty Adventurer Special Mode None Game No. 726 Rogue 711 Adventurer 6 Explorer 9 Win Type - Total 19 Types 10/1/4/4/0/0/0/0/0 Lore% 86 Gallery% 88 Achievement% 81 Wizard Run 0 Options --------- ASCII 0 Keyboard 0 Movement Mouse Keybinds 0 Fullscreen 1 Font 24/Crisp Map View 76x50 Tactical HUD 1 Map Filters NONE Filters NONE Steam 1 RUN: 137ac8fb-030a-45c1-b167-e0f58d25b224